bitfinex/quotes_ETHUSD_20250821
["timestamp","ask_amount","ask_price","bid_price","bid_amount"]
[1755808458068,4.125,4224.2,4223.8,0.02]
[1755808458271,1.82,4224.1,4223.8,0.02]
[1755808458463,4.125,4224.0,4223.8,0.02]
[1755808459213,0.2863,4223.9,4223.8,0.02]
[1755808459795,0.7253,4223.9,4223.8,0.02]
[1755808460370,0.5945,4224.0,4223.8,0.02]
[1755808460603,4.145,4223.9,4223.8,0.3115]
[1755808460768,1.82,4224.1,4223.8,0.3115]
[1755808461111,4.146,4224.0,4223.9,3.0]
[1755808461302,4.146,4224.0,4223.8,0.02]
[1755808461502,1.82,4224.1,4223.9,0.2915]
[1755808461707,4.146,4224.0,4223.9,0.2915]
[1755808462423,1.82,4224.1,4223.9,5.65898029]
[1755808462724,1.82,4224.1,4224.0,5.83282424]
[1755808462897,5.963,4224.1,4224.0,6.12432424]
[1755808463221,5.963,4224.1,4224.0,3.0]
[1755808463724,6.8456,4224.1,4224.0,3.0]
[1755808464235,5.963,4224.1,4224.0,3.0]
[1755808465109,6.6883,4224.1,4223.8,0.02]
[1755808465311,17.67587223,4224.0,4223.8,0.02]
[1755808465530,4.4283,4223.9,4223.8,0.02]
[1755808465727,4.8673,4223.9,4223.8,0.02]
[1755808465893,7.22943963,4223.9,4223.8,0.02]
[1755808467229,3.08743963,4223.9,4223.8,0.02]
[1755808467430,4.8683,4223.9,4223.8,0.02]
[1755808469497,5.962,4223.9,4223.8,0.02]
[1755808470219,1.821,4223.9,4223.8,0.3115]
[1755808470425,1.821,4223.9,4223.8,6.14443634]
[1755808470600,4.145,4224.0,4223.9,3.0]
[1755808470804,4.145,4224.0,4223.9,3.50207029]
[1755808471033,1.821,4224.6,4223.9,3.7569]
[1755808471242,4.144,4224.5,4224.4,2.36720007]
[1755808471551,1.821,4224.6,4224.5,2.36714404]
[1755808471748,1.821,4224.6,4224.5,6.12404404]
[1755808471905,5.967,4224.6,4224.5,6.12404404]
[1755808472103,5.967,4224.6,4224.5,3.2915]
[1755808472333,6.5637,4224.6,4224.5,3.0]
[1755808472630,7.289,4224.6,4223.8,0.02]
[1755808473601,0.439,4224.5,4223.8,0.02]
[1755808473806,4.148,4224.4,4223.8,0.02]
[1755808474333,0.439,4224.5,4223.8,0.02]
[1755808474525,4.148,4224.4,4223.8,0.02]
[1755808474701,0.6408,4224.4,4223.8,0.02]
[1755808475041,1.821,4224.6,4224.3,0.2915]
[1755808475204,1.821,4224.6,4223.8,0.02]
[1755808475403,4.146,4224.5,4224.2,2.36727195]
[1755808475599,1.821,4224.6,4224.4,0.2915]
[1755808475827,4.147,4224.5,4224.4,0.2915]
[1755808476338,4.147,4224.5,4223.8,0.02]
[1755808476538,4.4333,4224.5,4223.8,2.38748642]
[1755808476702,5.10263,4224.5,4223.8,0.02]
[1755808476904,1.821,4224.6,4223.8,0.02]
[1755808477104,1.821,4224.6,4224.4,2.65869201]
[1755808477342,4.146,4224.5,4224.4,2.65869201]
[1755808477562,4.146,4224.5,4224.4,0.2915]
[1755808477762,1.821,4224.6,4224.4,0.7275]
[1755808478046,4.147,4224.5,4223.9,3.436]
[1755808478256,4.7438,4224.5,4223.8,0.02]
[1755808478747,4.163,4224.4,4223.8,0.02]
[1755808479523,4.163,4224.3,4223.8,0.02]
[1755808480049,1.821,4224.5,4224.2,0.3128]
[1755808480258,4.161,4224.4,4224.3,2.36721605]
[1755808480420,4.161,4224.4,4224.3,0.3128]
[1755808481351,1.821,4224.5,4224.4,2.36720007]
[1755808481549,6.003,4224.5,4224.4,6.11600007]
[1755808482055,6.001,4224.5,4224.4,6.11600007]
[1755808482225,6.001,4224.5,4224.4,3.3128]
[1755808482428,1.821,4224.5,4224.4,3.3128]
[1755808482950,6.0,4224.5,4224.4,6.11600007]
[1755808483260,1.821,4224.5,4224.4,6.11600007]
[1755808483426,5.999,4224.5,4224.4,3.3128]
[1755808483617,1.821,4224.5,4224.4,3.3128]
[1755808483818,5.998,4224.5,4224.4,3.0]
[1755808484155,1.821,4224.5,4224.4,3.3128]
[1755808484326,1.821,4224.5,4224.4,5.68000007]
[1755808484530,5.997,4224.5,4224.4,3.3128]
[1755808484733,6.2871,4224.5,4223.8,0.02]
[1755808484918,7.3159,4224.5,4223.8,0.02]
[1755808485618,0.4291,4224.4,4223.8,0.02]
[1755808486857,0.2901,4223.9,4223.8,0.02]
[1755808487053,4.4671,4223.9,4223.8,0.02]
[1755808489662,4.91381,4223.9,4223.8,0.02]
[1755808489972,5.34291,4223.9,4223.8,0.02]
[1755808491242,5.34391,4223.9,4223.8,0.02]
[1755808493473,5.34191,4223.9,4223.8,0.02]
[1755808494266,1.16591,4223.9,4223.8,0.02]
[1755808494471,4.8942,4223.9,4223.8,0.02]
[1755808494633,4.4631,4223.9,4223.8,0.02]
[1755808494838,5.693,4224.3,4223.8,0.02]
[1755808495039,4.172,4224.2,4223.8,0.02]
[1755808495468,4.172,4224.1,4223.8,0.02]
[1755808495664,1.02941,4224.0,4223.8,0.02]
[1755808496055,4.17,4223.9,4223.8,0.02]
[1755808496260,1.02941,4224.0,4223.8,0.02]
[1755808496471,4.169,4223.9,4223.8,0.02]
[1755808496658,1.02941,4224.0,4223.8,0.02]
[1755808496971,4.169,4223.9,4223.8,0.3328]
[1755808497376,4.169,4223.9,4223.8,0.02]
[1755808497955,4.8882,4223.9,4223.8,0.02]
[1755808498470,0.2901,4223.9,4223.8,0.02]
[1755808498688,4.168,4223.9,4223.8,0.02]
[1755808498891,4.5848,4223.9,4223.8,0.02]
[1755808499242,0.4168,4223.9,4223.8,0.02]
[1755808499576,4.165,4223.9,4223.8,3.13632784]
[1755808499772,6.1231,4225.6,4223.8,3.7688]
[1755808500074,6.50214598,4225.5,4224.3,2.3672254]
[1755808500280,1.2626246,4225.4,4223.8,0.02]
[1755808500440,4.172,4225.3,4224.4,2.36718288]
[1755808500775,4.172,4225.3,4224.3,3.0]
[1755808500974,4.6011,4225.3,4223.8,0.02]
[1755808501176,0.4291,4225.2,4223.9,2.36743615]
[1755808501380,0.4291,4225.2,4223.8,0.02]
[1755808501566,17.23687223,4225.0,4223.8,0.02]
[1755808501882,4.6011,4224.9,4223.8,0.02]
[1755808502250,0.4291,4224.9,4223.8,0.02]
[1755808502450,4.172,4224.8,4223.8,0.02]
[1755808502674,5.993,4224.7,4223.8,0.02]
[1755808502877,0.5993,4224.6,4223.8,0.02]
[1755808503072,4.169,4224.5,4223.8,0.02]
[1755808503388,4.169,4224.4,4223.8,0.02]
[1755808503875,2.2511,4224.7,4223.8,0.02]
[1755808503876,4.169,4224.3,4223.8,0.02]
[1755808504081,4.169,4224.2,4223.8,0.02]
[1755808504280,4.174,4224.1,4223.8,0.02]
[1755808504580,4.175,4224.0,4223.9,2.80348029]
[1755808504755,1.822,4224.7,4224.3,2.36721294]
[1755808504959,1.822,4224.7,4224.4,0.023672]
[1755808505279,1.822,4224.7,4223.8,2.3874959]
[1755808505482,0.1822,4224.6,4223.8,0.02]
[1755808505776,0.4291,4224.5,4223.8,0.02]
[1755808507169,0.2901,4223.9,4223.8,0.02]
[1755808507374,6.2871,4223.9,4223.8,0.02]
[1755808507775,6.7162,4223.9,4223.8,0.02]
[1755808507978,7.38782,4223.9,4223.8,0.02]
[1755808510856,3.21282,4223.9,4223.8,0.02]
[1755808511087,5.989,4223.9,4223.8,0.02]
[1755808511807,6.7327,4223.9,4223.8,0.02]
[1755808511988,5.989,4223.9,4223.8,0.02]
[1755808513076,5.988,4223.9,4223.8,0.3225]
[1755808513297,5.988,4223.9,4223.8,0.02]
[1755808515091,6.892,4223.9,4223.8,0.02]
[1755808515298,7.3305,4223.9,4223.8,0.02]
[1755808515694,24.56737223,4223.9,4223.8,0.02]
[1755808516570,3.1645,4223.9,4223.8,0.02]
[1755808516904,7.3255,4223.9,4223.8,0.02]
[1755808519985,7.3215,4223.9,4223.8,0.02]
[1755808526635,13.0155,4223.9,4223.8,0.02]
[1755808527335,13.0045,4223.9,4223.8,0.02]
[1755808528497,8.8585,4223.9,4223.8,0.02]
[1755808528698,0.66,4223.8,4223.0,0.004]
[1755808529006,17.54207223,4223.1,4223.0,0.004]
[1755808529201,17.54207223,4223.1,4221.2,2.36898952]
[1755808529202,2.498,4222.9,4220.8,0.02]
[1755808529402,17.23687223,4221.3,4220.8,0.02]
[1755808529633,17.23687223,4221.9,4221.2,0.3025]
[1755808529799,6.044,4221.8,4221.2,0.3025]
[1755808530003,0.3052,4221.3,4220.8,0.02]
[1755808530232,4.223,4221.2,4220.8,0.02]
[1755808530416,2.17650722,4221.1,4220.8,0.02]
[1755808530734,7.15520722,4221.1,4220.8,0.02]
[1755808531124,30.66,4221.0,4220.0,0.00704545]
[1755808531346,17.54207223,4220.1,4220.0,0.00704545]
[1755808531531,17.54207223,4220.1,4217.8,2.39089353]
[1755808531532,30.66,4220.0,4217.8,0.02]
[1755808531703,17.23687223,4218.8,4217.8,0.02]
[1755808531913,6.068,4218.7,4217.9,0.4529]
[1755808532225,6.068,4218.7,4217.8,0.02]
[1755808532437,1.822,4218.7,4217.8,0.4729]
[1755808532808,1.822,4218.7,4218.6,0.3025]
[1755808533103,1.822,4218.7,4218.6,3.12585465]
[1755808533302,22.93187223,4220.1,4219.2,2.37011755]
[1755808533303,1.822,4219.3,4219.2,2.37011755]
[1755808533506,1.822,4219.5,4219.4,5.37000521]
[1755808533743,4.249,4219.5,4219.4,3.12535945]
[1755808533944,4.249,4219.5,4219.4,3.3025]
[1755808534146,1.822,4219.7,4219.5,2.36989431]
[1755808534312,1.822,4219.7,4219.6,0.3025]
[1755808534644,6.071,4219.7,4218.9,0.4529]
[1755808535044,1.822,4219.7,4218.5,3.0]
[1755808535243,4.251,4219.6,4218.6,2.82330071]
[1755808535418,4.251,4219.6,4218.7,3.0]
[1755808535620,1.822,4219.7,4219.5,0.3025]
[1755808535851,1.822,4219.7,4219.6,5.8464918]
[1755808536143,6.083,4219.7,4219.6,6.12529288]
[1755808536545,1.822,4219.7,4219.6,6.12529288]
[1755808536760,17.23687223,4222.0,4219.7,3.0]
[1755808537051,7.80768722,4221.7,4220.4,2.3693916]
[1755808537355,17.23687223,4221.5,4219.9,3.0]
[1755808537511,4.26,4221.4,4220.3,2.36948985]
[1755808537716,21.49687223,4221.4,4220.0,0.4529]
[1755808537912,0.4697,4221.3,4219.4,0.4699]
[1755808538110,17.23687223,4220.9,4219.4,3.4699]
[1755808538343,6.5527,4220.8,4219.4,0.4699]
[1755808539156,17.23687223,4220.4,4218.1,1.823]
[1755808539455,0.02,4219.8,4218.1,2.37068062]
[1755808539760,6.081,4219.7,4218.2,0.4699]
[1755808539923,2.83183963,4219.6,4218.2,0.4699]
[1755808540112,17.23687223,4219.4,4217.8,0.02]
[1755808540313,4.259,4219.3,4217.9,5.37084418]
[1755808540512,4.259,4219.3,4217.8,0.4899]
[1755808540741,0.4697,4219.2,4217.8,0.4899]
[1755808541042,1.84634339,4219.1,4217.8,0.4899]
[1755808541243,1.84634339,4219.1,4217.9,0.004]
[1755808541644,1.84634339,4219.1,4218.0,5.3707721]
[1755808541955,1.84634339,4219.1,4217.9,0.004]
[1755808542153,4.255,4219.0,4218.1,2.3706867]
[1755808542353,4.255,4219.0,4217.9,3.02770848]
[1755808542354,1.823,4218.9,4217.9,0.004]
[1755808542553,1.823,4218.9,4217.9,3.004]
[1755808542726,1.823,4218.9,4218.0,5.37079184]
[1755808542923,1.823,4218.9,4218.1,2.37073283]
[1755808543167,1.823,4218.9,4218.8,0.3065]
[1755808543365,6.075,4218.9,4218.8,3.14674227]
[1755808543524,6.075,4218.9,4218.8,0.7764]
[1755808543858,6.075,4218.9,4218.8,0.3065]
[1755808544065,1.823,4218.9,4218.8,0.3065]
[1755808544363,1.823,4218.9,4218.8,6.14674227]
[1755808544661,4.251,4219.1,4218.9,3.0]
[1755808544957,4.251,4219.1,4219.0,0.3065]
[1755808545462,1.823,4219.5,4219.0,0.7764]
[1755808545639,1.823,4219.5,4219.1,5.3701262]
[1755808545840,4.255,4219.4,4217.9,3.004]
[1755808546035,4.255,4219.3,4218.4,2.37056354]
[1755808546262,4.255,4219.3,4218.7,2.37039832]
[1755808546630,4.255,4219.3,4218.8,2.3703374]
[1755808546829,4.255,4219.3,4218.7,2.37038461]
[1755808547032,4.255,4219.3,4218.6,2.37044561]
[1755808547275,4.255,4219.3,4218.7,2.3703924]
[1755808547632,4.255,4219.3,4218.2,3.0]
[1755808547832,4.255,4219.3,4218.7,2.37039765]
[1755808548131,4.255,4219.3,4218.9,2.37024385]
[1755808548333,4.255,4219.3,4218.8,5.37032555]
[1755808548937,4.255,4219.3,4218.7,2.37039039]
[1755808549133,4.255,4219.3,4218.3,3.0]
[1755808549134,4.255,4219.3,4218.3,5.37062231]
[1755808549338,4.255,4219.3,4218.3,6.01851645]
[1755808549537,4.255,4219.3,4218.3,3.64789414]
[1755808549768,4.255,4219.3,4218.3,0.64789414]
[1755808549959,4.255,4219.3,4218.5,2.37049928]
[1755808550156,4.255,4219.3,4218.7,2.37036857]
[1755808550359,1.823,4219.5,4218.7,2.37036857]
[1755808550552,4.245,4219.4,4219.2,0.3065]
[1755808551081,4.245,4219.4,4219.2,2.67660531]
[1755808551249,4.245,4219.4,4219.2,3.3065]
[1755808551448,4.245,4219.4,4219.2,0.3065]
[1755808551748,4.245,4219.4,4218.4,0.4699]
[1755808551963,1.823,4219.5,4219.3,0.3065]
[1755808552150,4.244,4219.4,4219.3,0.3065]
[1755808552669,5.6185,4219.4,4218.4,2.37052191]
[1755808552970,5.6185,4219.4,4218.5,2.37049401]
[1755808553342,5.6185,4219.4,4218.3,2.3706046]
[1755808553543,5.6185,4219.4,4218.1,5.84062263]
[1755808553744,5.6185,4219.4,4218.3,2.37058538]
[1755808554139,0.74415,4219.3,4218.3,2.37058538]
[1755808554361,0.74415,4219.3,4218.1,0.4699]
[1755808554667,0.74415,4219.3,4218.2,3.0]
[1755808554870,0.74415,4219.3,4218.3,2.37056709]
[1755808555072,0.74415,4219.3,4218.4,2.37055251]
[1755808555274,0.74415,4219.3,4218.2,3.0]
[1755808555449,0.74415,4219.3,4218.3,2.37062323]
[1755808555643,0.74415,4219.3,4218.1,0.4699]
[1755808555843,0.74415,4219.3,4218.3,2.37058603]
[1755808556170,0.74415,4219.3,4218.2,3.0]
[1755808556171,0.49122348,4219.2,4218.2,3.0]
[1755808556392,0.49122348,4219.2,4218.4,2.37051589]
[1755808556693,0.4697,4219.1,4218.0,0.712768]
[1755808556874,0.4697,4219.1,4218.2,2.37067749]
[1755808557070,0.4697,4219.1,4218.1,2.37071846]
[1755808557275,0.4697,4219.1,4218.2,2.37065217]
[1755808557478,0.4697,4219.1,4218.2,2.37067212]
[1755808557781,0.4697,4219.1,4217.9,0.716927]
[1755808557984,0.4697,4219.1,4218.3,2.37061934]
[1755808558361,0.14682425,4219.0,4218.4,2.37055968]
[1755808558562,4.238,4218.9,4218.0,5.37073645]
[1755808558798,4.238,4218.8,4217.9,3.716927]
[1755808559003,1.824,4218.7,4218.1,2.37069131]
[1755808559176,1.824,4218.7,4218.2,2.37067937]
[1755808559362,1.824,4218.7,4218.1,5.3707236]
[1755808559693,1.824,4218.7,4218.1,3.0]
[1755808559863,1.824,4218.7,4217.9,0.716927]
[1755808559864,1.824,4218.7,4217.9,3.08775815]
[1755808560192,1.824,4218.7,4217.9,3.716927]
[1755808560403,1.824,4218.7,4218.6,0.3065]
[1755808560584,6.056,4218.7,4218.6,6.14685465]
[1755808561663,6.056,4218.7,4218.6,5.67695465]
[1755808561907,6.054,4218.7,4218.6,6.14685465]
[1755808562265,6.054,4218.7,4218.6,3.3065]
[1755808562470,6.054,4218.7,4218.6,5.67695465]
[1755808563018,6.052,4218.7,4218.6,6.14685465]
[1755808563568,1.824,4218.7,4218.6,6.14685465]
[1755808563816,1.824,4219.5,4219.2,2.37007904]
[1755808563969,1.824,4219.5,4219.0,2.37022927]
[1755808563970,1.824,4220.2,4219.7,2.36983671]
[1755808564170,1.824,4220.2,4219.7,5.67633671]
[1755808564370,1.824,4220.2,4219.7,7.49023187]
[1755808564668,4.227,4220.0,4219.7,5.67633671]
[1755808564864,4.227,4220.0,4219.7,3.3065]
[1755808565197,1.824,4220.2,4219.7,3.0]
[1755808565366,5.0148,4219.8,4219.7,3.0]
[1755808565996,5.0148,4219.8,4218.4,0.712844]
[1755808566180,0.97118,4219.7,4218.7,2.37035971]
[1755808566697,0.97118,4219.7,4218.6,3.0]
[1755808566867,0.97118,4219.7,4218.5,3.0]
[1755808567068,0.97118,4219.7,4218.8,2.37033566]
[1755808567302,0.97118,4219.7,4219.0,2.37021985]
[1755808567473,0.97118,4219.7,4218.6,2.37039899]
[1755808567474,0.991518,4219.6,4218.6,2.37039899]
[1755808567799,0.991518,4219.6,4219.0,2.37017444]
[1755808567980,0.991518,4219.6,4218.9,2.37028278]
[1755808568301,0.991518,4219.6,4218.4,0.712844]
[1755808568487,0.57467266,4219.5,4218.4,0.712844]
[1755808568693,1.824,4219.4,4218.8,2.37028751]
[1755808568878,4.223,4219.3,4218.8,2.37028751]
[1755808569087,4.6908,4219.3,4218.7,3.0]
[1755808569321,4.6908,4219.3,4218.7,2.37038429]
[1755808569615,4.6908,4219.3,4218.4,0.712844]
[1755808569616,0.3054,4218.8,4218.4,0.712844]
[1755808569823,4.6898,4218.7,4217.6,0.003]
[1755808569969,0.3054,4218.0,4217.6,2.37400702]
[1755808570319,4.5364,4218.0,4217.6,0.003]
[1755808570483,5.45784,4218.0,4217.6,0.003]
[1755808570819,5.0042,4218.0,4217.6,0.003]
[1755808571394,5.0042,4218.0,4217.6,0.007]
[1755808571871,5.51214045,4218.0,4217.6,0.007]
[1755808572065,5.51214045,4218.0,4217.6,0.003]
[1755808572066,1.28114045,4218.0,4217.6,0.003]
[1755808572272,10.7072,4218.0,4217.6,0.003]
[1755808572510,0.66,4217.5,4216.2,0.0089879]
[1755808572669,17.3859725,4217.7,4214.8,0.02]
[1755808572670,0.66,4216.2,4214.8,0.02]
[1755808573010,0.3054,4215.2,4214.8,0.02]
[1755808573170,6.3954,4215.2,4214.8,0.02]
[1755808573370,6.8632,4215.2,4214.8,0.02]
[1755808575891,5.55302,4215.2,4215.1,0.00757421]
[1755808576485,6.21302,4215.2,4215.1,0.00757421]
[1755808577809,22.9469925,4215.2,4215.1,0.00757421]
[1755808578008,19.3239925,4215.2,4215.1,0.00757421]
[1755808578209,23.6069925,4215.2,4215.1,0.00757421]
[1755808578399,19.5996618,4215.2,4215.1,0.00757421]
[1755808578922,18.9386618,4215.2,4215.1,0.00757421]
[1755808579113,19.5986618,4215.2,4215.1,0.00757421]
[1755808579409,0.66,4215.1,4214.8,0.02]
[1755808579610,0.9654,4214.9,4214.8,0.02]
[1755808579808,30.9654,4214.9,4214.8,0.02]
[1755808580017,31.4332,4214.9,4214.8,0.02]
[1755808580593,1.4332,4214.9,4214.8,0.02]
[1755808580799,31.4332,4214.9,4214.8,0.02]
[1755808580996,33.78639177,4214.9,4214.8,0.02]
[1755808581513,3.12639177,4214.9,4214.8,0.02]
[1755808581683,7.40639177,4214.9,4214.8,0.02]
[1755808582303,8.06639177,4214.9,4214.8,0.02]
[1755808582813,3.78639177,4214.9,4214.8,0.02]
[1755808583015,0.3054,4214.9,4214.8,0.02]
[1755808583196,4.283,4214.9,4214.8,0.02]
[1755808583607,6.109,4214.9,4214.8,0.7676]
[1755808583805,1.825,4214.9,4214.8,3.7676]
[1755808584186,6.108,4214.9,4214.8,0.02]
[1755808584384,6.7188,4214.9,4214.8,0.02]
[1755808584623,7.0242,4214.9,4214.8,0.02]
[1755808584919,7.492,4214.9,4214.8,0.02]
[1755808585118,6.118,4214.9,4214.8,0.02]
[1755808585417,6.118,4214.9,4214.8,0.3123]
[1755808585418,1.825,4214.9,4214.8,0.3123]
[1755808585618,1.825,4214.9,4214.8,0.7676]
[1755808585922,6.119,4214.9,4214.8,6.14019181]
[1755808586496,6.119,4214.9,4214.8,3.7676]
[1755808586700,1.825,4214.9,4214.8,6.14019181]
[1755808586900,6.12,4214.9,4214.8,6.14019181]
[1755808587105,6.118,4214.9,4214.8,6.14019181]
[1755808587299,1.825,4214.9,4214.8,6.99148011]
[1755808587828,6.115,4214.9,4214.8,6.99148011]
[1755808588543,5.705,4216.6,4215.5,2.37214268]
[1755808588699,5.705,4216.6,4215.4,3.0]
[1755808588700,1.825,4216.5,4215.4,3.0]
[1755808589036,1.825,4216.5,4215.5,0.47902197]
[1755808589240,4.287,4216.4,4215.5,0.47902197]
[1755808589437,4.287,4216.4,4216.3,2.66404774]
[1755808589739,4.287,4216.4,4216.3,0.2923]
[1755808589938,4.287,4216.4,4216.1,3.0]
[1755808589939,0.001,4216.2,4215.4,0.53723003]
[1755808590241,0.001,4216.2,4216.1,3.2923]
[1755808590538,0.001,4216.2,4216.1,5.66416024]
[1755808590696,4.287,4216.2,4216.1,6.11946024]
[1755808591452,4.287,4216.2,4216.1,3.7476]
[1755808591745,4.287,4216.2,4216.1,6.11946024]
[1755808592124,0.001,4216.2,4216.1,3.7476]
[1755808592307,4.282,4216.2,4216.1,3.7476]
[1755808593046,4.282,4216.2,4216.1,3.2923]
[1755808593923,4.282,4216.2,4216.1,3.0]
[1755808594926,0.001,4216.2,4216.1,3.2923]
[1755808595129,4.277,4216.2,4216.1,3.2923]
[1755808595996,5.1926,4216.2,4215.5,0.713356]
[1755808596233,5.1926,4216.2,4214.4,0.003]
[1755808596234,0.4678,4216.1,4214.4,0.003]
[1755808596524,0.4678,4216.1,4214.5,3.713356]
[1755808596729,0.4678,4216.1,4214.4,0.003]
[1755808599517,4.274,4216.0,4214.7,2.37263812]
[1755808599839,0.4358,4215.9,4214.4,0.003]
[1755808600742,0.2975,4214.9,4214.4,0.003]
[1755808600949,6.3945,4214.9,4214.4,0.003]
[1755808601146,1.825,4214.9,4214.4,0.003]
[1755808601309,6.096,4214.9,4214.4,0.003]
[1755808601514,1.825,4214.9,4214.4,0.003]
[1755808602045,6.096,4214.9,4214.4,0.003]
[1755808602731,1.825,4214.9,4214.4,0.003]
[1755808603041,6.093,4214.9,4214.8,3.7805]
[1755808603346,6.093,4214.9,4214.8,0.02]
[1755808605116,6.3905,4214.9,4214.8,0.02]
[1755808605317,6.8263,4214.9,4214.8,0.02]
[1755808605513,7.50893,4214.9,4214.8,0.02]
[1755808605849,2.50763,4214.9,4214.8,0.02]
[1755808606145,6.091,4214.9,4214.8,0.02]
[1755808606353,6.3885,4214.9,4214.8,0.02]
[1755808606515,6.8243,4214.9,4214.8,0.02]
[1755808608919,2.5583,4214.9,4214.8,0.02]
[1755808609121,6.8183,4214.9,4214.8,0.02]
[1755808609331,7.50013,4214.9,4214.8,0.02]
[1755808611515,0.68183,4214.9,4214.8,0.3227]
[1755808611716,1.825,4216.0,4214.9,2.37253552]
[1755808611928,4.277,4215.9,4214.8,0.4778]
[1755808612152,4.277,4215.9,4215.1,2.37241758]
[1755808612452,4.277,4215.9,4215.6,2.37208971]
[1755808612768,4.276,4215.8,4215.3,2.37231039]
[1755808612975,4.276,4215.8,4215.2,3.0]
[1755808613273,4.276,4215.8,4215.4,2.37224615]
[1755808613477,4.276,4215.8,4215.0,0.4578]
[1755808613656,4.276,4215.8,4215.7,0.3027]
[1755808613849,4.276,4215.8,4215.4,5.37224364]
[1755808614356,4.276,4215.8,4215.6,2.37213806]
[1755808614558,4.276,4215.8,4215.0,0.4578]
[1755808614753,0.001,4216.2,4215.9,2.37192967]
[1755808614951,1.825,4216.0,4215.9,2.37192967]
[1755808615136,6.096,4216.0,4215.9,2.67462967]
[1755808615336,1.825,4216.0,4215.9,6.13242967]
[1755808615556,6.094,4216.0,4215.9,6.13242967]
[1755808617163,1.825,4216.0,4215.9,6.13242967]
[1755808617368,6.089,4216.0,4215.9,6.13242967]
[1755808618071,6.087,4216.0,4215.9,6.13242967]
[1755808619248,0.001,4216.2,4216.1,2.37186024]
[1755808619448,0.001,4216.2,4216.1,5.67456024]
[1755808620180,1e-08,4216.2,4216.1,6.98278923]
[1755808620363,1e-08,4216.2,4216.1,7.64278923]
[1755808621249,0.02,4217.8,4216.1,7.64278923]
[1755808621250,1e-08,4217.1,4217.0,6.03135404]
[1755808621442,1e-08,4217.8,4217.7,2.37096047]
[1755808621638,1e-08,4217.8,4217.7,6.14786034]
[1755808621986,1e-08,4217.8,4217.7,6.60566034]
[1755808623474,1e-08,4217.8,4217.7,7.26566034]
[1755808623653,1e-08,4217.8,4217.7,8.15542802]
[1755808624375,1e-08,4217.8,4217.7,12.41842802]
[1755808624739,1e-08,4217.8,4217.7,8.15542802]
[1755808624944,1e-08,4217.8,4217.7,12.41742802]
[1755808625163,1e-08,4217.8,4217.7,12.41642802]
[1755808625449,1e-08,4217.8,4217.7,7.49542802]
[1755808625746,1e-08,4217.8,4217.7,11.04366302]
[1755808626061,1e-08,4217.8,4217.7,6.78266302]
[1755808627643,1e-08,4217.8,4217.7,6.32486302]
[1755808629551,1e-08,4217.8,4217.7,3.47419987]
[1755808629750,1e-08,4217.8,4217.4,4.257]
[1755808630158,1e-08,4217.8,4216.4,1.824]
[1755808630382,1e-08,4217.8,4216.9,2.37139629]
[1755808630689,0.4638,4217.7,4216.7,3.0]
[1755808630856,0.4638,4217.7,4217.2,2.37123698]
[1755808631062,0.4638,4217.7,4216.9,2.37140437]
[1755808631248,0.4638,4217.7,4217.1,3.0]
[1755808631582,1e-08,4217.8,4217.2,5.37123862]
[1755808631778,1e-08,4217.8,4217.3,0.02371185]
[1755808632180,0.46380001,4217.8,4217.2,2.37118776]
[1755808632675,0.46380001,4217.8,4217.0,5.8456431]
[1755808632676,1e-08,4217.8,4217.3,0.02371185]
[1755808632849,1e-08,4217.8,4217.4,2.37108659]
[1755808633041,1e-08,4217.8,4217.5,2.37102112]
[1755808633554,1e-08,4217.8,4217.5,3.0]
[1755808633759,1e-08,4217.8,4217.4,0.47659933]
[1755808633967,0.46380001,4217.8,4217.2,2.37124158]
[1755808634281,0.46480001,4217.8,4217.2,2.37124158]
[1755808635277,0.46480001,4217.8,4217.0,5.37135314]
[1755808635278,0.46480001,4217.8,4217.1,2.37128323]
[1755808636069,0.46480001,4217.8,4217.4,2.37112846]
[1755808636452,0.46480001,4217.8,4217.3,2.37116745]
[1755808636646,0.46480001,4217.8,4217.4,2.37112377]
[1755808636849,0.00100001,4217.8,4217.0,3.0]
[1755808637092,0.00100001,4217.8,4217.4,2.37111461]
[1755808637268,0.00100001,4217.8,4217.2,3.0]
[1755808637269,0.00100001,4217.8,4217.5,2.37102584]
[1755808637880,0.00100001,4217.8,4217.7,2.37096047]
[1755808638378,0.00100001,4217.8,4217.7,0.0237096]
[1755808638588,0.00100001,4217.8,4217.7,2.39467007]
[1755808638785,0.00100001,4217.8,4217.7,2.70537007]
[1755808639018,0.00100001,4217.8,4217.7,3.30432805]
[1755808639682,0.00100001,4217.8,4217.7,6.30432805]
[1755808639885,0.00100001,4217.8,4217.7,6.28061845]
[1755808641395,0.00100001,4217.8,4217.7,6.75521845]
[1755808641762,0.00100001,4217.8,4217.7,7.41521845]
[1755808642063,0.00100001,4217.8,4217.7,8.12797045]
[1755808645694,0.001,4218.7,4218.6,0.66]
[1755808645901,1.824,4220.2,4218.7,3.03039846]
[1755808646082,0.001,4220.3,4219.6,2.36989288]
[1755808646284,0.001,4220.3,4219.6,9.9182918]
[1755808646473,0.001,4220.3,4219.6,9.89459288]